Workbook

Sheet Tendências do Ano
A1: Título das Tendências de Despesas
A2: Mês | B2: Despesa 1 | C2: Despesa 2 | D2: Despesa 3 | E2: Despesa 4 | F2: Despesa 5
A3: Jan | B3: =SUBTOTAL(109,Despesa11[Valor]) -> 100.00 | C3: =SUBTOTAL(109,Despesa21[Valor]) -> 200.00 | D3: =SUBTOTAL(109,Despesa31[Valor]) -> 300.00 | E3: =SUBTOTAL(109,Despesa41[Valor]) -> 400.00 | F3: =SUBTOTAL(109,Despesa51[Valor]) -> 500.00
A4: Fev | B4: =SUBTOTAL(109,Despesa12[Valor]) -> 200.00 | C4: =SUBTOTAL(109,Despesa22[Valor]) -> 200.00 | D4: =SUBTOTAL(109,Despesa32[Valor]) -> 300.00 | E4: =SUBTOTAL(109,Despesa42[Valor]) -> 400.00 | F4: =SUBTOTAL(109,Despesa52[Valor]) -> 500.00
A5: Mar | B5: =SUBTOTAL(109,Despesa13[Valor]) -> 300.00 | C5: =SUBTOTAL(109,Despesa23[Valor]) -> 200.00 | D5: =SUBTOTAL(109,Despesa33[Valor]) -> 300.00 | E5: =SUBTOTAL(109,Despesa43[Valor]) -> 400.00 | F5: =SUBTOTAL(109,Despesa53[Valor]) -> 500.00
A6: Abr | B6: =SUBTOTAL(109,Despesa14[Valor]) -> 400.00 | C6: =SUBTOTAL(109,Despesa24[Valor]) -> 200.00 | D6: =SUBTOTAL(109,Despesa34[Valor]) -> 300.00 | E6: =SUBTOTAL(109,Despesa44[Valor]) -> 400.00 | F6: =SUBTOTAL(109,Despesa54[Valor]) -> 500.00
A7: Mai | B7: =SUBTOTAL(109,Despesa15[Valor]) -> 500.00 | C7: =SUBTOTAL(109,Despesa25[Valor]) -> 200.00 | D7: =SUBTOTAL(109,Despesa35[Valor]) -> 300.00 | E7: =SUBTOTAL(109,Despesa45[Valor]) -> 400.00 | F7: =SUBTOTAL(109,Despesa55[Valor]) -> 500.00
A8: Jun | B8: =SUBTOTAL(109,Despesa16[Valor]) -> 600.00 | C8: =SUBTOTAL(109,Despesa26[Valor]) -> 200.00 | D8: =SUBTOTAL(109,Despesa36[Valor]) -> 300.00 | E8: =SUBTOTAL(109,Despesa46[Valor]) -> 400.00 | F8: =SUBTOTAL(109,Despesa56[Valor]) -> 500.00
A9: Jul | B9: =SUBTOTAL(109,Despesa17[Valor]) -> 700.00 | C9: =SUBTOTAL(109,Despesa27[Valor]) -> 200.00 | D9: =SUBTOTAL(109,Despesa37[Valor]) -> 300.00 | E9: =SUBTOTAL(109,Despesa47[Valor]) -> 400.00 | F9: =SUBTOTAL(109,Despesa57[Valor]) -> 500.00
A10: Ago | B10: =SUBTOTAL(109,Despesa18[Valor]) -> 800.00 | C10: =SUBTOTAL(109,Despesa28[Valor]) -> 200.00 | D10: =SUBTOTAL(109,Despesa38[Valor]) -> 300.00 | E10: =SUBTOTAL(109,Despesa48[Valor]) -> 400.00 | F10: =SUBTOTAL(109,Despesa58[Valor]) -> 500.00
A11: Set | B11: =SUBTOTAL(109,Despesa19[Valor]) -> 900.00 | C11: =SUBTOTAL(109,Despesa29[Valor]) -> 200.00 | D11: =SUBTOTAL(109,Despesa39[Valor]) -> 300.00 | E11: =SUBTOTAL(109,Despesa49[Valor]) -> 400.00 | F11: =SUBTOTAL(109,Despesa59[Valor]) -> 500.00
A12: Out | B12: =SUBTOTAL(109,Despesa110[Valor]) -> 1,000.00 | C12: =SUBTOTAL(109,Despesa210[Valor]) -> 200.00 | D12: =SUBTOTAL(109,Despesa310[Valor]) -> 300.00 | E12: =SUBTOTAL(109,Despesa410[Valor]) -> 400.00 | F12: =SUBTOTAL(109,Despesa510[Valor]) -> 500.00
A13: Nov | B13: =SUBTOTAL(109,Despesa111[Valor]) -> 1,100.00 | C13: =SUBTOTAL(109,Despesa211[Valor]) -> 200.00 | D13: =SUBTOTAL(109,Despesa311[Valor]) -> 300.00 | E13: =SUBTOTAL(109,Despesa411[Valor]) -> 400.00 | F13: =SUBTOTAL(109,Despesa511[Valor]) -> 500.00
A14: Dez | B14: =SUBTOTAL(109,Despesa112[Valor]) -> 1,200.00 | C14: =SUBTOTAL(109,Despesa212[Valor]) -> 200.00 | D14: =SUBTOTAL(109,Despesa312[Valor]) -> 300.00 | E14: =SUBTOTAL(109,Despesa412[Valor]) -> 400.00 | F14: =SUBTOTAL(109,Despesa512[Valor]) -> 500.00
A15: Total | B15: =SUM(B3:B14) -> 7,800.00 | C15: =SUM(C3:C14) -> 2,400.00 | D15: =SUM(D3:D14) -> 3,600.00 | E15: =SUM(E3:E14) -> 4,800.00 | F15: =SUM(F3:F14) -> 6,000.00
A16: Tendências

Sheet Jan
A1: Despesas de Janeiro
C3: TOTAL | D3: =SUM(D10,D17,D24,D30,D36) -> R$ 1,500.00
A4: Despesa 1
A5: Data | B5: OC# | C5: Fornecedor/Descrição | D5: Valor
A6: 2010-01-08 | C6: Exemplo 1 | D6: 100.00
A10: Subtotal | D10: =SUBTOTAL(109,Despesa11[Valor]) -> 100.00
A11: x
A12: Despesa 2
A13: Data | B13: OC# | C13: Descrição | D13: Valor
A14: 2010-01-04 | C14: Exemplo 2 | D14: 200.00
A17: Subtotal | D17: =SUBTOTAL(109,Despesa21[Valor]) -> 200.00
A18: x
A19: Despesa 3
A20: Data | B20: OC# | C20: Fornecedor/Descrição | D20: Valor
A21: 2010-01-02 | C21: Exemplo 3 | D21: 300.00
A24: Subtotal | D24: =SUBTOTAL(109,Despesa31[Valor]) -> 300.00
A25: x
A26: Despesa 4
A27: Data | B27: OC# | C27: Fornecedor/Descrição | D27: Valor
A28: 2010-01-10 | C28: Exemplo 4 | D28: 400.00
A30: Subtotal | D30: =SUBTOTAL(109,Despesa41[Valor]) -> 400.00
A31: s
A32: Despesa 5
A33: Data | B33: OC# | C33: Fornecedor/Descrição | D33: Valor
A34: 2010-01-25 | C34: Exemplo 5 | D34: 500.00
A36: Subtotal | D36: =SUBTOTAL(109,Despesa51[Valor]) -> 500.00

Sheet Fev
A1: Despesas de Fevereiro
C3: TOTAL | D3: =SUM(D10,D17,D24,D30,D36) -> 1,600.00
A4: Despesa 1
A5: Data | B5: OC# | C5: Fornecedor/Descrição | D5: Valor
A6: 2010-02-08 | C6: Exemplo 1 | D6: 200.00
A10: Subtotal | D10: =SUBTOTAL(109,Despesa12[Valor]) -> 200.00
A11: x
A12: Despesa 2
A13: Data | B13: OC# | C13: Descrição | D13: Valor
A14: 2010-02-04 | C14: Exemplo 2 | D14: 200.00
A17: Subtotal | D17: =SUBTOTAL(109,Despesa22[Valor]) -> 200.00
A18: x
A19: Despesa 3
A20: Data | B20: OC# | C20: Fornecedor/Descrição | D20: Valor
A21: 2010-02-02 | C21: Exemplo 3 | D21: 300.00
A24: Subtotal | D24: =SUBTOTAL(109,Despesa32[Valor]) -> 300.00
A25: x
A26: Despesa 4
A27: Data | B27: OC# | C27: Fornecedor/Descrição | D27: Valor
A28: 2010-02-10 | C28: Exemplo 4 | D28: 400.00
A30: Subtotal | D30: =SUBTOTAL(109,Despesa42[Valor]) -> 400.00
A31: s
A32: Despesa 5
A33: Data | B33: OC# | C33: Fornecedor/Descrição | D33: Valor
A34: 2010-02-25 | C34: Exemplo 5 | D34: 500.00
A36: Subtotal | D36: =SUBTOTAL(109,Despesa52[Valor]) -> 500.00

Sheet Mar
A1: Despesas de Março
C3: TOTAL | D3: =SUM(D10,D17,D24,D30,D36) -> 1,700.00
A4: Despesa 1
A5: Data | B5: OC# | C5: Fornecedor/Descrição | D5: Valor
A6: 2010-03-08 | C6: Exemplo 1 | D6: 300.00
A10: Subtotal | D10: =SUBTOTAL(109,Despesa13[Valor]) -> 300.00
A11: x
A12: Despesa 2
A13: Data | B13: OC# | C13: Descrição | D13: Valor
A14: 2010-03-04 | C14: Exemplo 2 | D14: 200.00
A17: Subtotal | D17: =SUBTOTAL(109,Despesa23[Valor]) -> 200.00
A18: x
A19: Despesa 3
A20: Data | B20: OC# | C20: Fornecedor/Descrição | D20: Valor
A21: 2010-03-02 | C21: Exemplo 3 | D21: 300.00
A24: Subtotal | D24: =SUBTOTAL(109,Despesa33[Valor]) -> 300.00
A25: x
A26: Despesa 4
A27: Data | B27: OC# | C27: Fornecedor/Descrição | D27: Valor
A28: 2010-03-10 | C28: Exemplo 4 | D28: 400.00
A30: Subtotal | D30: =SUBTOTAL(109,Despesa43[Valor]) -> 400.00
A31: s
A32: Despesa 5
A33: Data | B33: OC# | C33: Fornecedor/Descrição | D33: Valor
A34: 2010-03-25 | C34: Exemplo 5 | D34: 500.00
A36: Subtotal | D36: =SUBTOTAL(109,Despesa53[Valor]) -> 500.00

Sheet Abr
A1: Despesas de Abril
C3: TOTAL | D3: =SUM(D10,D17,D24,D30,D36) -> 1,800.00
A4: Despesa 1
A5: Data | B5: OC# | C5: Fornecedor/Descrição | D5: Valor
A6: 2010-04-08 | C6: Exemplo 1 | D6: 400.00
A10: Subtotal | D10: =SUBTOTAL(109,Despesa14[Valor]) -> 400.00
A11: x
A12: Despesa 2
A13: Data | B13: OC# | C13: Descrição | D13: Valor
A14: 2010-04-04 | C14: Exemplo 2 | D14: 200.00
A17: Subtotal | D17: =SUBTOTAL(109,Despesa24[Valor]) -> 200.00
A18: x
A19: Despesa 3
A20: Data | B20: OC# | C20: Fornecedor/Descrição | D20: Valor
A21: 2010-04-02 | C21: Exemplo 3 | D21: 300.00
A24: Subtotal | D24: =SUBTOTAL(109,Despesa34[Valor]) -> 300.00
A25: x
A26: Despesa 4
A27: Data | B27: OC# | C27: Fornecedor/Descrição | D27: Valor
A28: 2010-04-10 | C28: Exemplo 4 | D28: 400.00
A30: Subtotal | D30: =SUBTOTAL(109,Despesa44[Valor]) -> 400.00
A31: s
A32: Despesa 5
A33: Data | B33: OC# | C33: Fornecedor/Descrição | D33: Valor
A34: 2010-04-25 | C34: Exemplo 5 | D34: 500.00
A36: Subtotal | D36: =SUBTOTAL(109,Despesa54[Valor]) -> 500.00

Sheet Mai
A1: Despesas de Maio
C3: TOTAL | D3: =SUM(D10,D17,D24,D30,D36) -> 1,900.00
A4: Despesa 1
A5: Data | B5: OC# | C5: Fornecedor/Descrição | D5: Valor
A6: 2010-05-08 | C6: Exemplo 1 | D6: 500.00
A10: Subtotal | D10: =SUBTOTAL(109,Despesa15[Valor]) -> 500.00
A11: x
A12: Despesa 2
A13: Data | B13: OC# | C13: Descrição | D13: Valor
A14: 2010-05-04 | C14: Exemplo 2 | D14: 200.00
A17: Subtotal | D17: =SUBTOTAL(109,Despesa25[Valor]) -> 200.00
A18: x
A19: Despesa 3
A20: Data | B20: OC# | C20: Fornecedor/Descrição | D20: Valor
A21: 2010-05-02 | C21: Exemplo 3 | D21: 300.00
A24: Subtotal | D24: =SUBTOTAL(109,Despesa35[Valor]) -> 300.00
A25: x
A26: Despesa 4
A27: Data | B27: OC# | C27: Fornecedor/Descrição | D27: Valor
A28: 2010-05-10 | C28: Exemplo 4 | D28: 400.00
A30: Subtotal | D30: =SUBTOTAL(109,Despesa45[Valor]) -> 400.00
A31: s
A32: Despesa 5
A33: Data | B33: OC# | C33: Fornecedor/Descrição | D33: Valor
A34: 2010-05-25 | C34: Exemplo 5 | D34: 500.00
A36: Subtotal | D36: =SUBTOTAL(109,Despesa55[Valor]) -> 500.00

Sheet Jun
A1: Despesas de Junho
C3: TOTAL | D3: =SUM(D10,D17,D24,D30,D36) -> 2,000.00
A4: Despesa 1
A5: Data | B5: OC# | C5: Fornecedor/Descrição | D5: Valor
A6: 2010-06-08 | C6: Exemplo 1 | D6: 600.00
A10: Subtotal | D10: =SUBTOTAL(109,Despesa16[Valor]) -> 600.00
A11: x
A12: Despesa 2
A13: Data | B13: OC# | C13: Descrição | D13: Valor
A14: 2010-06-04 | C14: Exemplo 2 | D14: 200.00
A17: Subtotal | D17: =SUBTOTAL(109,Despesa26[Valor]) -> 200.00
A18: x
A19: Despesa 3
A20: Data | B20: OC# | C20: Fornecedor/Descrição | D20: Valor
A21: 2010-06-02 | C21: Exemplo 3 | D21: 300.00
A24: Subtotal | D24: =SUBTOTAL(109,Despesa36[Valor]) -> 300.00
A25: x
A26: Despesa 4
A27: Data | B27: OC# | C27: Fornecedor/Descrição | D27: Valor
A28: 2010-06-10 | C28: Exemplo 4 | D28: 400.00
A30: Subtotal | D30: =SUBTOTAL(109,Despesa46[Valor]) -> 400.00
A31: s
A32: Despesa 5
A33: Data | B33: OC# | C33: Fornecedor/Descrição | D33: Valor
A34: 2010-06-25 | C34: Exemplo 5 | D34: 500.00
A36: Subtotal | D36: =SUBTOTAL(109,Despesa56[Valor]) -> 500.00

Sheet Jul
A1: Despesas de Julho
C3: TOTAL | D3: =SUM(D10,D17,D24,D30,D36) -> 2,100.00
A4: Despesa 1
A5: Data | B5: OC# | C5: Fornecedor/Descrição | D5: Valor
A6: 2010-07-08 | C6: Exemplo 1 | D6: 700.00
A10: Subtotal | D10: =SUBTOTAL(109,Despesa17[Valor]) -> 700.00
A11: x
A12: Despesa 2
A13: Data | B13: OC# | C13: Descrição | D13: Valor
A14: 2010-07-04 | C14: Exemplo 2 | D14: 200.00
A17: Subtotal | D17: =SUBTOTAL(109,Despesa27[Valor]) -> 200.00
A18: x
A19: Despesa 3
A20: Data | B20: OC# | C20: Fornecedor/Descrição | D20: Valor
A21: 2010-07-02 | C21: Exemplo 3 | D21: 300.00
A24: Subtotal | D24: =SUBTOTAL(109,Despesa37[Valor]) -> 300.00
A25: x
A26: Despesa 4
A27: Data | B27: OC# | C27: Fornecedor/Descrição | D27: Valor
A28: 2010-07-10 | C28: Exemplo 4 | D28: 400.00
A30: Subtotal | D30: =SUBTOTAL(109,Despesa47[Valor]) -> 400.00
A31: s
A32: Despesa 5
A33: Data | B33: OC# | C33: Fornecedor/Descrição | D33: Valor
A34: 2010-07-25 | C34: Exemplo 5 | D34: 500.00
A36: Subtotal | D36: =SUBTOTAL(109,Despesa57[Valor]) -> 500.00

Sheet Ago
A1: Despesas de Agosto
C3: TOTAL | D3: =SUM(D10,D17,D24,D30,D36) -> 2,200.00
A4: Despesa 1
A5: Data | B5: OC# | C5: Fornecedor/Descrição | D5: Valor
A6: 2010-08-08 | C6: Exemplo 1 | D6: 800.00
A10: Subtotal | D10: =SUBTOTAL(109,Despesa18[Valor]) -> 800.00
A11: x
A12: Despesa 2
A13: Data | B13: OC# | C13: Descrição | D13: Valor
A14: 2010-08-04 | C14: Exemplo 2 | D14: 200.00
A17: Subtotal | D17: =SUBTOTAL(109,Despesa28[Valor]) -> 200.00
A18: x
A19: Despesa 3
A20: Data | B20: OC# | C20: Fornecedor/Descrição | D20: Valor
A21: 2010-08-02 | C21: Exemplo 3 | D21: 300.00
A24: Subtotal | D24: =SUBTOTAL(109,Despesa38[Valor]) -> 300.00
A25: x
A26: Despesa 4
A27: Data | B27: OC# | C27: Fornecedor/Descrição | D27: Valor
A28: 2010-08-10 | C28: Exemplo 4 | D28: 400.00
A30: Subtotal | D30: =SUBTOTAL(109,Despesa48[Valor]) -> 400.00
A31: s
A32: Despesa 5
A33: Data | B33: OC# | C33: Fornecedor/Descrição | D33: Valor
A34: 2010-08-25 | C34: Exemplo 5 | D34: 500.00
A36: Subtotal | D36: =SUBTOTAL(109,Despesa58[Valor]) -> 500.00

Sheet Set
A1: Despesas de Setembro
C3: TOTAL | D3: =SUM(D10,D17,D24,D30,D36) -> 2,300.00
A4: Despesa 1
A5: Data | B5: OC# | C5: Fornecedor/Descrição | D5: Valor
A6: 2010-09-08 | C6: Exemplo 1 | D6: 900.00
A10: Subtotal | D10: =SUBTOTAL(109,Despesa19[Valor]) -> 900.00
A11: x
A12: Despesa 2
A13: Data | B13: OC# | C13: Descrição | D13: Valor
A14: 2010-09-04 | C14: Exemplo 2 | D14: 200.00
A17: Subtotal | D17: =SUBTOTAL(109,Despesa29[Valor]) -> 200.00
A18: x
A19: Despesa 3
A20: Data | B20: OC# | C20: Fornecedor/Descrição | D20: Valor
A21: 2010-09-02 | C21: Exemplo 3 | D21: 300.00
A24: Subtotal | D24: =SUBTOTAL(109,Despesa39[Valor]) -> 300.00
A25: x
A26: Despesa 4
A27: Data | B27: OC# | C27: Fornecedor/Descrição | D27: Valor
A28: 2010-09-10 | C28: Exemplo 4 | D28: 400.00
A30: Subtotal | D30: =SUBTOTAL(109,Despesa49[Valor]) -> 400.00
A31: s
A32: Despesa 5
A33: Data | B33: OC# | C33: Fornecedor/Descrição | D33: Valor
A34: 2010-09-25 | C34: Exemplo 5 | D34: 500.00
A36: Subtotal | D36: =SUBTOTAL(109,Despesa59[Valor]) -> 500.00

Sheet Out
A1: Despesas de Outubro
C3: TOTAL | D3: =SUM(D10,D17,D24,D30,D36) -> 2,400.00
A4: Despesa 1
A5: Data | B5: OC# | C5: Fornecedor/Descrição | D5: Valor
A6: 2010-10-08 | C6: Exemplo 1 | D6: 1,000.00
A10: Subtotal | D10: =SUBTOTAL(109,Despesa110[Valor]) -> 1,000.00
A11: x
A12: Despesa 2
A13: Data | B13: OC# | C13: Descrição | D13: Valor
A14: 2010-10-04 | C14: Exemplo 2 | D14: 200.00
A17: Subtotal | D17: =SUBTOTAL(109,Despesa210[Valor]) -> 200.00
A18: x
A19: Despesa 3
A20: Data | B20: OC# | C20: Fornecedor/Descrição | D20: Valor
A21: 2010-10-02 | C21: Exemplo 3 | D21: 300.00
A24: Subtotal | D24: =SUBTOTAL(109,Despesa310[Valor]) -> 300.00
A25: x
A26: Despesa 4
A27: Data | B27: OC# | C27: Fornecedor/Descrição | D27: Valor
A28: 2010-10-10 | C28: Exemplo 4 | D28: 400.00
A30: Subtotal | D30: =SUBTOTAL(109,Despesa410[Valor]) -> 400.00
A31: s
A32: Despesa 5
A33: Data | B33: OC# | C33: Fornecedor/Descrição | D33: Valor
A34: 2010-10-25 | C34: Exemplo 5 | D34: 500.00
A36: Subtotal | D36: =SUBTOTAL(109,Despesa510[Valor]) -> 500.00

Sheet Nov
A1: Despesas de Novembro
C3: TOTAL | D3: =SUM(D10,D17,D24,D30,D36) -> 2,500.00
A4: Despesa 1
A5: Data | B5: OC# | C5: Fornecedor/Descrição | D5: Valor
A6: 2010-11-08 | C6: Exemplo 1 | D6: 1,100.00
A10: Subtotal | D10: =SUBTOTAL(109,Despesa111[Valor]) -> 1,100.00
A11: x
A12: Despesa 2
A13: Data | B13: OC# | C13: Descrição | D13: Valor
A14: 2010-11-04 | C14: Exemplo 2 | D14: 200.00
A17: Subtotal | D17: =SUBTOTAL(109,Despesa211[Valor]) -> 200.00
A18: x
A19: Despesa 3
A20: Data | B20: OC# | C20: Fornecedor/Descrição | D20: Valor
A21: 2010-11-02 | C21: Exemplo 3 | D21: 300.00
A24: Subtotal | D24: =SUBTOTAL(109,Despesa311[Valor]) -> 300.00
A25: x
A26: Despesa 4
A27: Data | B27: OC# | C27: Fornecedor/Descrição | D27: Valor
A28: 2010-11-10 | C28: Exemplo 4 | D28: 400.00
A30: Subtotal | D30: =SUBTOTAL(109,Despesa411[Valor]) -> 400.00
A31: s
A32: Despesa 5
A33: Data | B33: OC# | C33: Fornecedor/Descrição | D33: Valor
A34: 2010-11-25 | C34: Exemplo 5 | D34: 500.00
A36: Subtotal | D36: =SUBTOTAL(109,Despesa511[Valor]) -> 500.00

Sheet Dez
A1: Despesas de Dezembro
C3: TOTAL | D3: =SUM(D10,D17,D24,D30,D36) -> 2,600.00
A4: Despesa 1
A5: Data | B5: OC# | C5: Fornecedor/Descrição | D5: Valor
A6: 2010-12-08 | C6: Exemplo 1 | D6: 1,200.00
A10: Subtotal | D10: =SUBTOTAL(109,Despesa112[Valor]) -> 1,200.00
A11: x
A12: Despesa 2
A13: Data | B13: OC# | C13: Descrição | D13: Valor
A14: 2010-12-04 | C14: Exemplo 2 | D14: 200.00
A17: Subtotal | D17: =SUBTOTAL(109,Despesa212[Valor]) -> 200.00
A18: x
A19: Despesa 3
A20: Data | B20: OC# | C20: Fornecedor/Descrição | D20: Valor
A21: 2010-12-02 | C21: Exemplo 3 | D21: 300.00
A24: Subtotal | D24: =SUBTOTAL(109,Despesa312[Valor]) -> 300.00
A25: x
A26: Despesa 4
A27: Data | B27: OC# | C27: Fornecedor/Descrição | D27: Valor
A28: 2010-12-10 | C28: Exemplo 4 | D28: 400.00
A30: Subtotal | D30: =SUBTOTAL(109,Despesa412[Valor]) -> 400.00
A31: s
A32: Despesa 5
A33: Data | B33: OC# | C33: Fornecedor/Descrição | D33: Valor
A34: 2010-12-25 | C34: Exemplo 5 | D34: 500.00
A36: Subtotal | D36: =SUBTOTAL(109,Despesa512[Valor]) -> 500.00
